bitfinex-derivatives/quotes_BTCF0:USTF0_20250926
["timestamp","ask_amount","ask_price","bid_price","bid_amount"]
[1758905272415,0.86528,109380.0,109370.0,0.1274471]
[1758905272615,0.02276,109380.0,109370.0,0.1274471]
[1758905273107,0.52644,109380.0,109370.0,0.1274471]
[1758905273303,0.02276,109380.0,109370.0,0.1274471]
[1758905273506,0.8018,109380.0,109370.0,0.1274471]
[1758905273702,0.86512,109380.0,109370.0,0.1274471]
[1758905273915,0.40903984,109400.0,109390.0,0.1278705]
[1758905274105,0.9570321,109400.0,109390.0,0.1278705]
[1758905274514,0.1141121,109400.0,109390.0,0.1278705]
[1758905274717,1.25211394,109400.0,109390.0,0.03651]
[1758905276515,1.25511394,109400.0,109390.0,0.03651]
[1758905277311,0.9601921,109400.0,109390.0,0.03651]
[1758905277513,1.25511394,109400.0,109390.0,0.03651]
[1758905278519,0.1141204,109390.0,109380.0,0.03651]
[1758905278714,0.40904224,109390.0,109380.0,0.03651]
[1758905279119,0.40904224,109390.0,109380.0,0.0233]
[1758905280314,0.41004224,109390.0,109380.0,0.0233]
[1758905280532,0.1141287,109380.0,109370.0,0.1274471]
[1758905280824,0.40905054,109380.0,109370.0,0.1274471]
[1758905281021,1.25301054,109380.0,109370.0,0.1274471]
[1758905281222,1.25301054,109380.0,109370.0,0.03607]
[1758905281423,0.40905054,109380.0,109370.0,0.03607]
[1758905281623,0.40905054,109380.0,109370.0,0.1274469]
[1758905281922,1.25493054,109380.0,109370.0,0.1274469]
[1758905282825,1.29181035,109380.0,109370.0,0.03607]
[1758905283026,0.9599687,109380.0,109370.0,0.1274469]
[1758905283225,1.29177035,109380.0,109370.0,0.1274469]
[1758905283526,0.44693035,109380.0,109370.0,0.1274469]
[1758905283918,0.02376,109380.0,109370.0,0.45924855]
[1758905284116,0.35556165,109380.0,109370.0,0.45924855]
[1758905284314,0.63984165,109380.0,109370.0,0.1274469]
[1758905284520,0.35556165,109380.0,109370.0,0.1274469]
[1758905284721,1.20264165,109380.0,109370.0,0.1274469]
[1758905284922,1.29401015,109380.0,109370.0,0.1274469]
[1758905285120,1.29421015,109380.0,109370.0,0.45924855]
[1758905285319,1.29449015,109380.0,109370.0,0.45924855]
[1758905285522,1.29441015,109380.0,109370.0,0.45924855]
[1758905285716,0.35556165,109380.0,109370.0,0.45924855]
[1758905285922,0.63204,109380.0,109370.0,0.45924855]
[1758905286228,1.05521015,109380.0,109370.0,0.45924855]
[1758905287128,0.44693015,109380.0,109370.0,0.45924855]
[1758905287320,1.29441015,109380.0,109370.0,0.45924855]
[1758905288043,1.29441015,109380.0,109370.0,0.36787165]
[1758905288338,0.9626085,109380.0,109370.0,0.1274469]
[1758905288629,1.29441015,109380.0,109370.0,0.1274469]
[1758905289224,1.29441015,109380.0,109370.0,0.45924855]
[1758905289428,0.02376,109380.0,109370.0,0.45924855]
[1758905289626,0.66428,109380.0,109370.0,0.45924855]
[1758905289828,0.84852,109380.0,109370.0,0.45924855]
[1758905290628,1.20174165,109380.0,109370.0,0.45924855]
[1758905290830,0.86978,109380.0,109370.0,0.45924855]
[1758905291034,0.35426165,109380.0,109370.0,0.45924855]
[1758905291331,1.20158165,109380.0,109370.0,0.45924855]
[1758905291830,0.02246,109380.0,109370.0,0.45924855]
[1758905292031,0.8697,109380.0,109370.0,0.1274469]
[1758905292437,0.8697,109380.0,109370.0,0.45924855]
[1758905292827,1.29287015,109380.0,109370.0,0.45924855]
[1758905294238,1.29287015,109380.0,109370.0,0.1274469]
[1758905294632,1.29335015,109380.0,109370.0,0.45924855]
[1758905294836,0.87018,109380.0,109370.0,0.45924855]
[1758905295034,0.35426165,109380.0,109370.0,0.45924855]
[1758905295339,0.96186165,109380.0,109370.0,0.45924855]
[1758905296236,1.20198165,109380.0,109370.0,0.45924855]
[1758905297240,1.29335015,109380.0,109370.0,0.45924855]
[1758905297436,1.29335015,109380.0,109370.0,0.1274469]
[1758905298438,1.29335015,109380.0,109370.0,0.03607]
[1758905298641,1.29335015,109380.0,109370.0,0.1274469]
[1758905298828,1.63435441,109380.0,109370.0,0.03607]
[1758905299033,1.63435441,109380.0,109350.0,0.20909348]
[1758905299034,0.1146153,109360.0,109350.0,0.20909348]
[1758905299233,1.29417695,109360.0,109350.0,0.20909348]
[1758905299533,1.29417695,109360.0,109350.0,0.1271814]
[1758905299926,1.30096695,109360.0,109350.0,0.03579]
[1758905300128,1.30096695,109360.0,109350.0,0.02258]
[1758905300334,0.44641695,109360.0,109350.0,0.1278236]
[1758905300534,1.29425695,109360.0,109350.0,0.1278236]
[1758905300734,0.35503165,109360.0,109350.0,0.1278236]
[1758905300942,1.20283165,109360.0,109350.0,0.1278236]
[1758905301325,0.35503165,109360.0,109350.0,0.1278236]
[1758905301638,1.14283165,109360.0,109350.0,0.1298236]
[1758905302232,1.20295165,109360.0,109350.0,0.1298236]
[1758905302439,1.20319165,109360.0,109350.0,0.1298236]
[1758905303031,0.35503165,109360.0,109350.0,0.1298236]
[1758905303235,1.14231165,109360.0,109350.0,0.1298236]
[1758905303437,1.14231165,109360.0,109350.0,0.46162525]
[1758905303637,1.23369685,109360.0,109350.0,0.46162525]
[1758905303933,0.35503165,109360.0,109350.0,0.46162525]
[1758905304134,1.27685021,109360.0,109350.0,0.46162525]
[1758905304440,1.27781021,109360.0,109350.0,0.45962525]
[1758905304732,1.36919541,109360.0,109350.0,0.45962525]
[1758905304934,1.36919541,109360.0,109350.0,0.1278236]
[1758905305133,0.52131541,109360.0,109350.0,0.1278236]
[1758905305440,1.36927541,109360.0,109350.0,0.1278236]
[1758905305734,1.03747376,109360.0,109350.0,0.1278236]
[1758905305939,1.36967541,109360.0,109350.0,0.1278236]
[1758905306440,0.42993021,109360.0,109350.0,0.45962525]
[1758905306741,1.36983541,109360.0,109350.0,0.1278236]
[1758905307339,1.36983541,109360.0,109350.0,0.03643]
[1758905307837,0.1146236,109350.0,109340.0,0.12725679]
[1758905308030,0.44642525,109350.0,109340.0,0.12725679]
[1758905308439,0.44642525,109350.0,109340.0,1.62725679]
[1758905308639,0.44642525,109350.0,109340.0,0.12725679]
[1758905309033,0.35503165,109350.0,109340.0,0.12725679]
[1758905309233,0.44642525,109350.0,109340.0,0.45905844]
[1758905310143,0.44642525,109350.0,109340.0,0.12725679]
[1758905311034,0.35503165,109350.0,109340.0,0.45905844]
[1758905311438,0.02323,109350.0,109340.0,0.45905844]
[1758905311641,0.68027,109350.0,109340.0,0.45905844]
[1758905311939,0.87131,109350.0,109340.0,0.45905844]
[1758905312440,0.02323,109350.0,109340.0,0.45905844]
[1758905312641,0.67995,109350.0,109340.0,0.45905844]
[1758905313145,0.67995,109350.0,109340.0,0.12725679]
[1758905313339,0.02323,109350.0,109340.0,0.45905844]
[1758905313742,0.67959,109350.0,109340.0,0.45905844]
[1758905314245,0.87087,109350.0,109340.0,0.45905844]
[1758905314743,1.20251165,109350.0,109340.0,0.45905844]
[1758905314944,0.35503165,109350.0,109340.0,0.45905844]
[1758905315242,0.92955165,109350.0,109340.0,0.45905844]
[1758905315438,0.92955165,109350.0,109340.0,0.12725679]
[1758905315644,1.02094515,109350.0,109340.0,0.12726279]
[1758905316541,0.6891435,109350.0,109340.0,0.12726279]
[1758905316739,1.02094515,109350.0,109340.0,0.45906444]
[1758905317843,0.92955165,109350.0,109340.0,0.45906444]
[1758905318049,1.02094515,109350.0,109340.0,0.45906444]
[1758905318345,0.87255,109350.0,109340.0,0.45906444]
[1758905318547,1.20435165,109350.0,109340.0,0.45906444]
[1758905318844,0.42893021,109360.0,109350.0,0.1278235]
[1758905319048,0.94644856,109360.0,109350.0,0.45962515]
[1758905319247,0.09712856,109360.0,109350.0,0.45962515]
[1758905319639,0.35503165,109380.0,109370.0,0.1278068]
[1758905319838,0.07395075,109380.0,109370.0,0.45960845]
[1758905320039,0.44638875,109400.0,109390.0,0.1277901]
[1758905320237,0.37879355,109400.0,109390.0,0.1277901]
[1758905320443,1.29634335,109400.0,109390.0,0.1277901]
[1758905321146,0.9645417,109400.0,109390.0,0.1277901]
[1758905321341,1.29634335,109400.0,109390.0,0.1277901]
[1758905322039,1.30434335,109400.0,109390.0,0.1277901]
[1758905322948,0.9725417,109400.0,109390.0,0.1277901]
[1758905323148,1.30434335,109400.0,109390.0,0.1277901]
[1758905323840,0.1225817,109400.0,109390.0,0.45959175]
[1758905324036,0.49591634,109400.0,109390.0,0.45959175]
[1758905324240,0.82771799,109400.0,109390.0,0.1277901]
[1758905324436,0.82771799,109400.0,109390.0,0.03643]
[1758905324638,0.49591634,109400.0,109390.0,0.12779]
[1758905324843,0.82771799,109400.0,109390.0,0.12779]
[1758905328558,0.49591634,109400.0,109390.0,0.12779]
[1758905328764,0.82771799,109400.0,109390.0,0.12779]
[1758905328957,1.37731799,109400.0,109390.0,0.45959165]
[1758905329458,1.04551634,109400.0,109390.0,0.45959165]
[1758905329758,1.37731799,109400.0,109390.0,0.45959165]
[1758905330359,1.37731799,109400.0,109390.0,0.12779]
[1758905330659,0.10536464,109400.0,109390.0,0.45959165]
[1758905330858,0.008,109400.0,109390.0,0.9510035]
[1758905332156,0.8027835,109410.0,109400.0,0.0913516]
[1758905332362,0.8238335,109410.0,109400.0,0.45682325]
[1758905332558,0.02105,109410.0,109400.0,0.45682325]
[1758905332757,0.86965,109410.0,109400.0,0.45682325]
[1758905332956,0.9609933,109410.0,109400.0,0.1250216]
[1758905333160,0.86965,109410.0,109400.0,0.45682325]
[1758905333357,1.27514106,109410.0,109400.0,0.45682325]
[1758905333561,1.36748436,109410.0,109400.0,0.45682325]
[1758905334869,1.27614106,109410.0,109400.0,0.45682325]
[1758905335667,1.36748436,109410.0,109400.0,0.45682325]
[1758905336963,0.51888436,109410.0,109400.0,0.45682325]
[1758905337168,1.36632436,109410.0,109400.0,0.45682325]
[1758905339071,1.03452271,109410.0,109400.0,0.45682325]
[1758905339271,1.36632436,109410.0,109400.0,0.45682325]
[1758905342967,1.36632436,109410.0,109400.0,0.1250216]
[1758905343169,1.36632436,109410.0,109400.0,0.03367]
[1758905343362,1.36632436,109410.0,109400.0,0.1250216]
[1758905343962,1.36632436,109410.0,109400.0,0.03367]
[1758905344668,1.32929954,109410.0,109400.0,0.03367]
[1758905345477,0.1132116,109400.0,109390.0,0.1274537]
[1758905345677,0.40798843,109400.0,109390.0,0.1274537]
[1758905345977,0.1132116,109400.0,109390.0,0.2188572]
[1758905346466,0.6104116,109400.0,109390.0,0.2188572]
[1758905347471,0.9602116,109400.0,109390.0,0.2188635]
[1758905348671,0.9605316,109400.0,109390.0,0.2188635]
[1758905349172,0.9614516,109400.0,109390.0,0.2188635]
[1758905349568,0.1142116,109400.0,109390.0,0.2188635]
[1758905349976,0.001,109400.0,109390.0,0.51364033]
[1758905350170,0.0923516,109400.0,109390.0,0.51364033]
[1758905350365,0.001,109400.0,109390.0,0.51364033]
[1758905350569,0.02286,109400.0,109390.0,0.51364033]
[1758905351373,0.001,109400.0,109390.0,0.91364033]
[1758905353380,0.65897891,109410.0,109400.0,0.1047916]
[1758905353580,0.65897891,109410.0,109400.0,0.1270116]
[1758905353982,0.18689891,109410.0,109400.0,0.1270116]
[1758905354182,0.21070597,109410.0,109400.0,0.1270116]
[1758905354383,1.05274597,109410.0,109400.0,0.1270116]
[1758905354677,1.05374597,109410.0,109400.0,0.1270116]
[1758905354875,0.21170597,109410.0,109400.0,0.1270116]
[1758905355077,1.05850597,109410.0,109400.0,0.1270116]
[1758905355377,1.05830597,109410.0,109400.0,0.1270116]
[1758905356278,0.94314941,109410.0,109400.0,0.1270116]
[1758905356481,0.94290941,109410.0,109400.0,0.1270116]
[1758905357681,0.09654941,109410.0,109400.0,0.1270116]
[1758905357977,0.84765271,109410.0,109400.0,0.1270116]
[1758905358771,1.03397271,109410.0,109400.0,0.1270116]
[1758905358981,0.09654941,109410.0,109400.0,0.42178843]
[1758905359282,0.94238941,109410.0,109400.0,0.42178843]
[1758905359876,0.94238941,109410.0,109400.0,0.1270116]
[1758905360075,0.94238941,109410.0,109400.0,0.42178843]
[1758905360283,1.03373291,109410.0,109400.0,0.1270116]
[1758905360684,0.18789291,109410.0,109400.0,0.1270116]
[1758905360883,1.03365291,109410.0,109400.0,0.1270116]
[1758905362185,0.94230941,109410.0,109400.0,0.1270116]
[1758905362381,0.09654941,109410.0,109400.0,0.42178843]
[1758905362587,0.09654941,109410.0,109400.0,0.51319193]
[1758905364384,0.09654941,109410.0,109400.0,0.52218944]
[1758905365682,0.09654941,109410.0,109400.0,0.92218944]
[1758905366682,0.001,109410.0,109400.0,0.92218944]
[1758905372894,0.001,109410.0,109400.0,0.62741261]
[1758905373193,0.001,109410.0,109400.0,0.92218944]
[1758905373381,0.001,109410.0,109400.0,1.76694944]
[1758905374292,0.001,109410.0,109400.0,0.92218944]
[1758905374689,0.001,109410.0,109400.0,1.76686944]
[1758905374889,0.001,109410.0,109400.0,0.92218944]
[1758905375088,0.001,109410.0,109400.0,1.76682944]
[1758905377694,0.09641587,109430.0,109420.0,0.1269952]
[1758905377996,0.02236,109430.0,109420.0,0.1269952]
[1758905378298,0.02236,109430.0,109420.0,0.51315882]
[1758905379296,0.1176868,109430.0,109420.0,0.51315882]
[1758905379994,0.09820939,109430.0,109420.0,0.21838199]
[1758905380190,0.004,109430.0,109420.0,0.51315882]
[1758905381197,0.004,109430.0,109420.0,0.91315882]
[1758905381897,0.004,109430.0,109420.0,0.51315882]
[1758905382100,0.02544,109430.0,109420.0,1.35775882]
[1758905383100,0.004,109430.0,109420.0,1.35775882]
[1758905383492,0.004,109430.0,109420.0,0.51315882]
[1758905383692,0.02544,109430.0,109420.0,0.51315882]
[1758905384100,0.004,109430.0,109420.0,0.51315882]
[1758905384300,0.02544,109430.0,109420.0,1.35959882]
[1758905384498,0.004,109430.0,109420.0,0.51315882]
[1758905385201,0.004,109430.0,109420.0,1.35939882]
[1758905388405,0.02144,109440.0,109430.0,0.1277304]
[1758905388705,0.1127584,109440.0,109430.0,0.42250723]
[1758905389108,0.1127584,109440.0,109430.0,0.51389402]
[1758905389607,0.18695305,109450.0,109440.0,0.1277284]
[1758905389804,0.18695305,109450.0,109440.0,0.42250523]
[1758905390205,0.18695305,109450.0,109440.0,0.1277284]
[1758905390798,0.18695305,109450.0,109440.0,0.42250523]
[1758905391710,0.18995305,109450.0,109440.0,0.42250523]
[1758905393901,0.18995305,109450.0,109440.0,0.1277284]
[1758905397516,0.18995305,109450.0,109440.0,0.03641]
[1758905398704,0.18995305,109450.0,109440.0,0.1277292]
[1758905399611,0.88472988,109450.0,109440.0,0.02279]
[1758905400017,0.1127592,109440.0,109430.0,0.1277315]
[1758905402418,0.1226092,109440.0,109430.0,0.02279]
[1758905402720,0.81738603,109440.0,109430.0,0.02279]
[1758905403317,0.5137592,109440.0,109430.0,0.03641]
[1758905403616,0.5137592,109440.0,109430.0,0.02279]
[1758905403818,0.1127676,109430.0,109420.0,0.03713]
[1758905404018,0.42000443,109430.0,109420.0,0.02279]
[1758905404224,0.32867683,109430.0,109420.0,0.1277458]
[1758905404431,0.02144,109430.0,109420.0,0.1277458]
[1758905404723,0.35291557,109430.0,109420.0,0.45922137]
[1758905405230,0.02144,109430.0,109420.0,0.45922137]
[1758905406122,1.29122187,109440.0,109430.0,0.1261475]
[1758905406322,1.29122187,109440.0,109430.0,0.45762307]
[1758905406529,0.44546187,109440.0,109430.0,0.45762307]
[1758905406932,0.1139863,109440.0,109430.0,0.45762307]
[1758905407123,0.44546187,109440.0,109430.0,0.45762307]
[1758905408330,0.02266,109440.0,109430.0,0.45762307]
[1758905408832,0.18818065,109450.0,109440.0,0.1261391]
[1758905409127,0.09686305,109450.0,109440.0,0.45761467]
[1758905409630,0.18817385,109450.0,109440.0,0.45761467]
[1758905410233,0.19117385,109450.0,109440.0,0.45761467]
[1758905412330,0.07720305,109450.0,109440.0,0.45761467]
[1758905412538,0.09857305,109450.0,109440.0,0.45761467]
[1758905413033,0.18988385,109450.0,109440.0,0.45761467]
[1758905413329,0.18788385,109450.0,109440.0,0.45761467]
[1758905414337,0.09657305,109450.0,109440.0,0.45761467]
[1758905414532,0.09657305,109450.0,109440.0,0.78909024]
[1758905414738,0.001,109450.0,109440.0,0.88046033]
[1758905417737,0.001,109450.0,109440.0,0.88962329]
[1758905418642,0.001,109450.0,109440.0,1.28962329]
[1758905419141,0.001,109450.0,109440.0,0.62667215]
[1758905419443,0.001,109450.0,109440.0,2.13642329]
[1758905419738,0.001,109450.0,109440.0,1.28962329]
[1758905419940,0.001,109450.0,109440.0,1.28046033]
[1758905420241,0.001,109450.0,109440.0,2.12726033]
[1758905420635,0.001,109450.0,109440.0,2.12810033]
[1758905420939,0.001,109450.0,109440.0,1.28046033]
[1758905421140,0.001,109450.0,109440.0,2.12806033]
[1758905421339,0.001,109450.0,109440.0,2.13721203]
[1758905421538,0.001,109450.0,109440.0,1.28961203]
[1758905421742,0.001,109450.0,109440.0,2.13709203]
[1758905422241,0.001,109450.0,109440.0,1.28961203]
[1758905422542,0.001,109450.0,109440.0,2.13697203]
[1758905422843,0.001,109450.0,109440.0,1.28961203]
[1758905423143,0.001,109450.0,109440.0,2.13705203]
[1758905423537,0.001,109450.0,109440.0,2.13713203]
[1758905425740,0.001,109450.0,109440.0,1.80565646]
[1758905425936,0.001,109450.0,109440.0,1.28961203]
[1758905426645,0.001,109450.0,109440.0,2.13689203]
[1758905429845,0.001,109450.0,109440.0,1.28961203]
[1758905430444,0.02237,109450.0,109440.0,2.13613203]
[1758905430746,0.001,109450.0,109440.0,2.13613203]
[1758905430950,0.001,109450.0,109440.0,1.47318089]
[1758905431144,0.001,109450.0,109440.0,1.28961203]
[1758905432549,0.001,109450.0,109440.0,2.13597203]
[1758905437150,0.001,109450.0,109440.0,1.28961203]
[1758905437346,0.001,109450.0,109440.0,1.28046033]
[1758905437654,0.001,109450.0,109440.0,0.88046033]
[1758905437853,0.02237,109450.0,109440.0,0.88046033]
[1758905438156,0.02237,109450.0,109440.0,1.39566476]
[1758905438358,0.02237,109450.0,109440.0,1.80905241]
[1758905438548,0.02237,109450.0,109440.0,0.96237241]
[1758905438749,0.02237,109450.0,109440.0,1.80905241]
[1758905439055,0.02237,109450.0,109440.0,1.72714033]
[1758905439546,0.02237,109450.0,109440.0,0.88046033]
[1758905439746,0.02237,109450.0,109440.0,1.39526476]
[1758905440249,0.02237,109450.0,109440.0,1.72674033]
[1758905440450,0.001,109450.0,109440.0,1.72674033]
[1758905442657,0.001,109450.0,109440.0,1.39526476]
[1758905442857,0.001,109450.0,109440.0,1.72674033]
[1758905443751,0.001,109450.0,109440.0,0.88046033]
[1758905443948,0.35384557,109450.0,109440.0,0.54898476]
[1758905444157,0.75384557,109450.0,109440.0,0.54898476]
[1758905444355,0.75384557,109450.0,109440.0,1.39466476]
[1758905444658,0.42237,109450.0,109440.0,1.39466476]
[1758905446069,0.42237,109450.0,109440.0,1.47657684]
[1758905448969,0.42237,109450.0,109440.0,1.39466476]
[1758905452873,0.42237,109450.0,109440.0,1.06318919]
[1758905453172,0.42237,109450.0,109440.0,1.39466476]
[1758905454374,0.42237,109450.0,109440.0,1.14510127]
[1758905454573,0.42237,109450.0,109440.0,1.47657684]
[1758905455169,0.75384557,109450.0,109440.0,0.63089684]
[1758905455374,0.35384557,109450.0,109440.0,1.30297467]
[1758905455974,0.35384557,109450.0,109440.0,0.45761467]
[1758905456374,0.02237,109450.0,109440.0,0.45761467]
[1758905456573,0.35384557,109450.0,109440.0,0.45761467]
[1758905458168,0.02237,109450.0,109440.0,0.45761467]
[1758905458369,0.001,109450.0,109440.0,0.45761467]
[1758905458771,0.02223,109450.0,109440.0,0.45761467]
[1758905459673,0.001,109450.0,109440.0,0.88046033]
[1758905460479,0.001,109450.0,109440.0,1.28046033]
[1758905460874,0.02123,109480.0,109470.0,0.1273832]
[1758905461277,0.02123,109480.0,109470.0,0.45885877]
[1758905461980,0.1125158,109480.0,109470.0,0.45885877]
[1758905462180,0.1185158,109480.0,109470.0,0.45885877]
[1758905462380,0.44999137,109480.0,109470.0,0.45885877]
[1758905463174,0.44999137,109480.0,109470.0,0.1273832]
[1758905463373,0.1185158,109480.0,109470.0,0.45885877]
[1758905463574,0.44999137,109480.0,109470.0,0.45885877]
[1758905464275,0.09898085,109480.0,109470.0,0.79033434]
[1758905465082,0.07775085,109480.0,109470.0,0.79033434]
[1758905466580,0.07775085,109480.0,109470.0,0.42167322]
[1758905467177,0.09928085,109480.0,109470.0,0.42167322]
[1758905473485,0.07775085,109480.0,109470.0,0.42167322]
[1758905473790,0.09985085,109480.0,109470.0,0.42167322]
[1758905474886,0.0281,109480.0,109470.0,0.42167322]
[1758905475185,0.0281,109480.0,109470.0,0.51301827]
[1758905475389,0.006,109480.0,109470.0,0.51301827]
[1758905478581,0.07125601,109500.0,109490.0,0.0912775]
[1758905478786,0.0221,109500.0,109490.0,0.42063752]
[1758905479791,0.0221,109500.0,109490.0,0.1263475]
[1758905481785,0.1133691,109500.0,109490.0,0.1263475]
[1758905481986,0.1133691,109500.0,109490.0,0.03507]
[1758905482193,0.41365912,109500.0,109490.0,0.02115]
[1758905482393,0.41365912,109500.0,109480.0,0.1051999]
[1758905482590,0.40766752,109490.0,109480.0,0.1263499]
[1758905482793,0.1133775,109490.0,109480.0,0.1263499]
[1758905482989,0.82012752,109490.0,109480.0,0.1124359]
[1758905483300,0.82012752,109490.0,109480.0,0.0912859]
[1758905483598,0.1133859,109480.0,109470.0,0.1261886]
[1758905485400,0.5201759,109480.0,109470.0,0.1124386]
[1758905485601,0.5133859,109480.0,109470.0,0.1263586]
[1758905485897,0.81867204,109480.0,109470.0,0.1263586]
[1758905486700,0.52438202,109480.0,109470.0,0.1263586]
[1758905487000,0.81867204,109480.0,109470.0,0.1263586]
[1758905487198,0.72738614,109480.0,109470.0,0.1263586]
[1758905487896,0.43309612,109480.0,109470.0,0.1263586]
[1758905488393,0.72738614,109480.0,109470.0,0.1263586]
[1758905489491,0.81867204,109480.0,109470.0,0.1263586]
[1758905489694,0.81867204,109480.0,109470.0,0.0912886]
[1758905490097,0.81867204,109480.0,109470.0,0.1124386]
[1758905490498,0.81867204,109480.0,109470.0,0.1263586]
[1758905490696,0.72738614,109480.0,109470.0,0.1263586]
[1758905491105,0.52438202,109480.0,109470.0,0.1263586]
[1758905492303,0.81867204,109480.0,109470.0,0.1124386]
[1758905492598,0.1133942,109470.0,109460.0,0.0349]
[1758905492802,0.41653422,109470.0,109460.0,0.0913026]
[1758905493011,1.27013422,109470.0,109460.0,0.0913026]
[1758905493202,1.67013422,109470.0,109460.0,0.0913026]
[1758905494204,1.67113422,109470.0,109460.0,0.0913026]
[1758905494394,1.67105422,109470.0,109460.0,0.0913026]
[1758905494594,0.0913025,109460.0,109450.0,0.1052249]
[1758905494908,0.41448252,109460.0,109450.0,0.0913049]
[1758905495202,0.41448252,109460.0,109450.0,0.1263749]
[1758905495399,1.26081252,109460.0,109450.0,0.1263749]
[1758905495901,1.26081252,109460.0,109450.0,0.1134549]
[1758905496101,0.40769252,109460.0,109450.0,0.1134549]
[1758905496307,1.26065252,109460.0,109450.0,0.1134549]
[1758905496795,1.26065252,109460.0,109450.0,0.1273749]
[1758905497601,1.26049252,109460.0,109450.0,0.0923049]
[1758905498202,1.26041252,109460.0,109450.0,0.1134549]
[1758905498701,1.33251986,109460.0,109450.0,0.1134549]
[1758905498897,1.33251986,109460.0,109450.0,0.0923049]
[1758905499103,1.73259986,109460.0,109450.0,0.0923049]
[1758905499407,1.33259986,109460.0,109450.0,0.0923049]
[1758905499603,0.47979986,109460.0,109450.0,0.001]
[1758905499812,1.33263986,109460.0,109450.0,0.001]
[1758905500902,1.33263986,109460.0,109450.0,0.0923109]
[1758905501103,0.47979986,109460.0,109450.0,0.0923109]
[1758905501504,1.33307986,109460.0,109450.0,0.0913109]
[1758905501803,1.33507986,109460.0,109450.0,0.0913109]
[1758905502002,0.1252208,109450.0,109440.0,0.0913146]
[1758905502200,0.41951082,109450.0,109440.0,0.0913146]
[1758905502805,0.41951082,109450.0,109440.0,0.1129746]
[1758905503007,1.22387082,109450.0,109440.0,0.1129746]
[1758905503310,1.27235082,109450.0,109440.0,0.1129746]
[1758905503607,0.31574002,109450.0,109440.0,0.1269246]
[1758905503808,0.95386002,109450.0,109440.0,0.1269246]
[1758905504203,0.87429,109450.0,109440.0,0.1269246]
[1758905504511,0.87421,109450.0,109440.0,0.1269246]
[1758905505003,0.9675209,109450.0,109440.0,0.1269246]
[1758905505205,0.1147609,109450.0,109440.0,0.1269246]
[1758905505509,0.8363609,109450.0,109440.0,0.1269246]
[1758905506409,0.1147609,109450.0,109440.0,0.1269246]
[1758905506612,0.9672409,109450.0,109440.0,0.1269246]
[1758905507209,0.87593,109450.0,109440.0,0.1269246]
[1758905507508,0.87541,109450.0,109440.0,0.1269246]
[1758905508110,0.9667209,109450.0,109440.0,0.1269246]
[1758905508310,0.1147609,109450.0,109440.0,0.1269246]
[1758905508609,0.5559609,109450.0,109440.0,0.1269246]
[1758905511507,0.46465,109450.0,109440.0,0.1269246]
[1758905511714,0.02345,109450.0,109440.0,0.1269246]
[1758905512411,0.30529,109450.0,109440.0,0.1269246]
[1758905512713,0.30529,109450.0,109440.0,0.42121462]
[1758905512919,0.30529,109450.0,109440.0,0.1269246]
[1758905513912,0.02345,109450.0,109440.0,0.1269246]
[1758905514113,0.02345,109450.0,109440.0,0.82121462]
[1758905514315,0.002,109450.0,109440.0,0.91258471]
[1758905515115,0.02345,109450.0,109440.0,0.91258471]
[1758905518210,0.02345,109450.0,109440.0,0.61829469]
[1758905518416,0.1147609,109450.0,109440.0,0.21829469]
[1758905519806,0.02345,109450.0,109440.0,0.21829469]
[1758905523511,0.114761,109450.0,109440.0,0.21829469]
[1758905524110,0.02345,109450.0,109440.0,0.21829469]
[1758905525218,0.002,109450.0,109440.0,0.51258471]
[1758905526022,0.002,109450.0,109440.0,0.91258471]
[1758905526613,0.002,109450.0,109440.0,0.94958931]
[1758905527020,0.002,109450.0,109440.0,1.28088393]
[1758905528820,0.002,109450.0,109440.0,0.61829469]
[1758905529021,0.002,109450.0,109440.0,1.28088393]
[1758905529521,0.0244,109450.0,109440.0,0.54958931]
[1758905531020,0.35569462,109450.0,109440.0,0.54958931]
[1758905531318,0.0244,109450.0,109440.0,0.54958931]
[1758905531727,0.0244,109450.0,109440.0,0.21829469]
[1758905531919,0.0244,109450.0,109440.0,0.54958931]
[1758905532723,0.35569462,109450.0,109440.0,0.21829469]
[1758905533316,0.35569462,109450.0,109440.0,0.54958931]
[1758905533516,0.44700552,109450.0,109440.0,0.21829469]
[1758905533917,0.35569462,109450.0,109440.0,0.21829469]
[1758905534223,0.35569462,109450.0,109440.0,0.54958931]
[1758905534419,0.44700552,109450.0,109440.0,0.21829469]
[1758905534625,0.84700552,109450.0,109440.0,0.1269246]
[1758905534825,0.85585552,109450.0,109440.0,0.1269246]
[1758905535626,0.85585552,109450.0,109440.0,0.1129746]
[1758905537025,1.69856552,109450.0,109440.0,0.1265346]
[1758905537221,1.69852552,109450.0,109440.0,0.1265346]
[1758905537624,1.69844552,109450.0,109440.0,0.1265346]
[1758905538126,0.84700552,109450.0,109440.0,0.1265346]
[1758905538327,1.69840552,109450.0,109440.0,0.1265346]
[1758905538834,1.60701462,109450.0,109440.0,0.45782922]
[1758905539441,0.75569462,109450.0,109440.0,0.45782922]
[1758905539730,1.60701462,109450.0,109440.0,0.45782922]
[1758905539931,0.75569462,109450.0,109440.0,0.45782922]
[1758905540131,1.60689462,109450.0,109440.0,0.45782922]
[1758905540832,0.75569462,109450.0,109440.0,0.45782922]
[1758905541033,1.60677462,109450.0,109440.0,0.45782922]
[1758905541234,0.75569462,109450.0,109440.0,0.45782922]
[1758905541533,1.69800592,109450.0,109440.0,0.45782922]
[1758905541928,1.69792592,109450.0,109440.0,0.45782922]
[1758905542235,0.4244,109450.0,109440.0,0.45782922]
[1758905542438,0.0244,109450.0,109440.0,0.45782922]
[1758905544123,0.35569462,109450.0,109440.0,0.45782922]
[1758905545035,0.0244,109450.0,109440.0,0.45782922]
[1758905545333,0.35569462,109450.0,109440.0,0.45782922]
[1758905545836,0.35569462,109450.0,109440.0,0.1265346]
[1758905546029,0.35569462,109450.0,109440.0,0.45782922]
[1758905546230,0.35569462,109450.0,109440.0,0.1265346]
[1758905546436,0.35569462,109450.0,109440.0,0.45782922]
[1758905547335,0.0244,109450.0,109440.0,0.45782922]
[1758905547535,0.35569462,109450.0,109440.0,0.45782922]
[1758905547736,0.002,109450.0,109440.0,1.28049393]
[1758905548534,0.002,109450.0,109440.0,0.94919931]
[1758905548740,0.02372,109450.0,109440.0,0.61790469]
[1758905549036,0.02372,109450.0,109440.0,0.94919931]
[1758905549730,0.02172,109450.0,109440.0,0.94919931]
[1758905549932,0.02272,109450.0,109440.0,0.94919931]
[1758905550735,0.44532632,109450.0,109440.0,0.1265346]
[1758905552430,0.35401462,109450.0,109440.0,0.1265346]
[1758905553140,0.44532632,109450.0,109440.0,0.1265346]
[1758905555739,0.35401462,109450.0,109440.0,0.1265346]
[1758905557540,0.44532632,109450.0,109440.0,0.1265346]
[1758905558039,0.02272,109450.0,109440.0,0.1265346]
[1758905558338,0.35401462,109450.0,109440.0,0.1265346]